bitfinex-derivatives/quotes_ETHF0:USTF0_20241207
["timestamp","ask_amount","ask_price","bid_price","bid_amount"]
[1733582534077,0.17483,3999.6,3999.5,0.17483]
[1733582534488,0.17484,3999.4,3999.3,0.58914]
[1733582535181,0.90019635,3999.6,3999.3,0.4143]
[1733582535370,0.17484,3999.4,3999.3,0.4143]
[1733582537082,0.17485,3999.1,3999.0,3.92719386]
[1733582537282,0.17486,3999.0,3998.9,3.2078]
[1733582537485,0.58166,3999.0,3998.9,3.2078]
[1733582537781,0.58166,3999.0,3998.7,4.48146386]
[1733582537782,0.4068,3999.0,3998.7,4.48146386]
[1733582537981,0.17486,3998.8,3998.7,0.3794]
[1733582545081,0.17485,3999.1,3999.0,0.17485]
[1733582546286,3.2078,3999.2,3998.7,5.20679021]
[1733582546486,1.0709,3999.4,3999.0,0.17485]
[1733582546487,0.17485,3999.1,3999.0,0.17485]
[1733582547483,0.17485,3999.2,3999.1,0.17485]
[1733582547681,0.17484,3999.3,3999.2,0.17484]
[1733582547986,0.3969,3999.4,3999.0,1.30989635]
[1733582548179,0.17483,3999.6,3999.5,0.17483]
[1733582548381,0.58622,3999.7,3999.6,0.4097]
[1733582549783,0.58622,3999.7,3999.6,0.58453]
[1733582550785,0.4114,3999.7,3999.6,0.58453]
[1733582551088,0.4114,3999.7,3999.6,1.48472635]
[1733582552090,0.17482,3999.8,3999.7,0.17482]
[1733582552587,0.17482,3999.8,3999.7,0.56322]
[1733582554088,0.17482,3999.9,3999.8,0.17482]
[1733582554291,0.3937,4000.0,3999.7,0.3884]
[1733582554485,0.17481,4000.0,3999.9,0.17481]
[1733582554685,1.22241,4000.1,4000.0,0.17481]
[1733582554891,1.0476,4000.1,3999.7,0.3884]
[1733582555091,0.17481,4000.0,3999.9,0.17482]
[1733582555393,1.22241,4000.1,3999.9,0.17482]
[1733582555784,1.22241,4000.1,3999.9,0.17481]
[1733582556594,1.0476,4000.1,4000.0,0.17481]
[1733582556792,0.3736,4000.1,4000.0,0.17481]
[1733582557287,0.3736,4000.1,4000.0,0.58791]
[1733582559086,0.54841,4000.1,4000.0,0.58791]
[1733582559291,0.3736,4000.1,4000.0,0.58791]
[1733582560593,0.3736,4000.1,4000.0,0.62214334]
[1733582561000,0.674,4000.4,4000.0,0.44733334]
[1733582561291,0.674,4000.4,4000.3,0.1748]
[1733582561592,0.674,4000.4,4000.3,0.20903334]
[1733582561800,0.17479,4000.5,4000.4,0.17479]
[1733582562300,0.17479,4000.4,4000.3,0.03423334]
[1733582562497,0.17479,4000.4,4000.3,0.20903334]
[1733582562695,0.17479,4000.4,4000.3,0.03423334]
[1733582563689,3.12180238,4000.4,4000.3,0.03423334]
[1733582563998,0.17479,4000.4,4000.3,0.03423334]
[1733582564394,3.11727823,4000.4,4000.3,0.03423334]
[1733582565199,0.17479,4000.4,4000.3,0.03423334]
[1733582570803,3.11738497,4000.4,4000.3,0.03423334]
[1733582571603,0.17479,4000.4,4000.3,0.03423334]
[1733582571900,3.11752481,4000.4,4000.3,0.03423334]
[1733582572406,3.31950325,4000.4,4000.3,0.03423334]
[1733582573407,0.37647671,4000.4,4000.3,0.03423334]
[1733582573705,3.11784252,4000.4,4000.3,0.03423334]
[1733582574414,4.01803887,4000.4,4000.3,0.03423334]
[1733582576304,1.07498635,4000.4,4000.3,0.03423334]
[1733582577606,0.17479,4000.4,4000.3,0.03423334]
[1733582577907,0.84779,4000.4,4000.3,0.03423334]
[1733582578708,3.79098193,4000.4,4000.3,0.03423334]
[1733582579905,4.69117828,4000.4,4000.3,0.03423334]
[1733582582306,1.74798635,4000.4,4000.3,0.03423334]
[1733582582808,4.69128803,4000.4,4000.3,0.03423334]
[1733582583213,1.74798635,4000.4,4000.3,0.03423334]
[1733582583506,4.69124627,4000.4,4000.3,0.03423334]
[1733582583903,1.74798635,4000.4,4000.3,0.03423334]
[1733582584219,4.69124627,4000.4,4000.3,0.03423334]
[1733582584510,1.74798635,4000.4,4000.3,0.03423334]
[1733582584808,0.17479,4000.4,4000.3,0.03423334]
[1733582585007,0.84779,4000.4,4000.3,0.03423334]
[1733582587507,0.86173868,4000.4,4000.3,0.03423334]
[1733582588013,0.18873868,4000.4,4000.3,0.03423334]
[1733582590910,3.1319986,4000.4,4000.3,0.03423334]
[1733582591312,3.5451986,4000.4,4000.3,0.03423334]
[1733582592315,3.54996537,4000.4,4000.3,0.03423334]
[1733582592617,0.60193868,4000.4,4000.3,0.03423334]
[1733582593520,3.13731851,4000.4,4000.3,3.9614272]
[1733582594024,0.18873868,4000.4,4000.3,4.92575505]
[1733582594220,0.01394868,4000.4,4000.3,10.64284594]
[1733582594519,0.18873868,4000.4,4000.3,10.64284594]
[1733582594816,0.18873868,4000.4,4000.3,4.75095505]
[1733582596924,0.18873868,4000.4,4000.3,4.92575505]
[1733582597123,0.18873868,4000.4,4000.3,10.64284594]
[1733582597427,0.18873868,4000.4,4000.3,4.75095505]
[1733582598125,0.18873868,4000.4,4000.3,4.75156441]
[1733582598339,0.18873868,4000.4,4000.3,10.6434553]
[1733582598513,0.18873868,4000.4,4000.3,4.75156441]
[1733582598717,0.01394868,4000.4,4000.3,4.75156441]
[1733582598920,0.01394868,4000.4,4000.3,14.0260553]
[1733582599122,0.01394868,4000.4,4000.3,15.99708376]
[1733582599426,0.01394868,4000.4,4000.3,8.13416441]
[1733582600528,0.01394868,4000.4,4000.3,14.02829333]
[1733582600824,0.01394868,4000.4,4000.3,8.13416441]
[1733582603028,0.01394868,4000.4,4000.3,8.13037076]
[1733582604526,0.01394868,4000.4,4000.3,14.02147418]
[1733582604920,0.01394868,4000.4,4000.3,8.13037076]
[1733582605526,0.01394868,4000.4,4000.3,14.02078053]
[1733582605728,0.01394868,4000.4,4000.3,9.03056711]
[1733582606032,0.01394868,4000.4,4000.3,14.92100805]
[1733582606228,0.01394868,4000.4,4000.3,14.92098055]
[1733582606524,0.01394868,4000.4,4000.3,16.8910656]
[1733582606731,0.01394868,4000.4,4000.3,15.81606925]
[1733582606932,0.18873868,4000.4,4000.3,4.74777076]
[1733582607438,0.57713868,4000.4,4000.3,4.74777076]
[1733582607932,0.57713868,4000.4,4000.3,4.74694436]
[1733582608224,0.57713868,4000.4,4000.3,3.9619569]
[1733582609331,0.57713868,4000.4,4000.3,0.03423334]
[1733582610531,0.57713868,4000.4,4000.3,3.9619569]
[1733582611230,0.57713868,4000.4,4000.3,4.74711833]
[1733582611419,0.57713868,4000.4,4000.3,0.03423334]
[1733582611624,0.57713868,4000.4,4000.3,3.96208709]
[1733582612632,0.40234868,4000.4,4000.3,0.20903334]
[1733582612932,0.40234868,4000.4,4000.3,4.92191249]
[1733582613126,0.40234868,4000.4,4000.3,10.81300161]
[1733582614126,0.01394868,4000.4,4000.3,10.81300161]
[1733582614637,0.01394868,4000.4,4000.3,4.92191249]
[1733582616230,0.01394868,4000.4,4000.3,0.20903334]
[1733582616626,0.01394868,4000.4,4000.3,4.92076451]
[1733582616837,0.01394868,4000.4,4000.3,4.13588358]
[1733582617135,0.01394868,4000.4,4000.3,4.1358476]
[1733582617835,0.01394868,4000.4,4000.3,0.20903334]
[1733582618030,0.01394868,4000.4,4000.3,4.13609031]
[1733582621535,0.01394868,4000.4,4000.3,10.81340772]
[1733582622330,0.01394868,4000.4,4000.3,6.10012246]
[1733582622535,0.01394868,4000.4,4000.3,10.81353725]
[1733582624737,0.01394868,4000.4,4000.3,4.92244813]
[1733582626235,0.01394868,4000.4,4000.3,12.78294662]
[1733582627328,0.01394868,4000.4,4000.3,22.21049182]
[1733582627534,0.01394868,4000.4,4000.3,12.78318516]
[1733582627839,0.01394868,4000.4,4000.3,22.21081024]
[1733582628533,0.01394868,4000.4,4000.3,22.2115662]
[1733582629139,0.01394868,4000.4,4000.3,22.2115871]
[1733582629337,0.01394868,4000.4,4000.3,12.78318516]
[1733582629540,0.01394868,4000.4,4000.3,4.92268667]
[1733582629937,0.01394868,4000.4,4000.3,5.82288302]
[1733582632340,0.01394868,4000.4,4000.3,5.82373208]
[1733582633735,0.01394868,4000.4,4000.3,13.68423057]
[1733582634840,0.01394868,4000.4,4000.3,15.25211671]
[1733582637246,0.01394868,4000.4,4000.3,15.25013983]
[1733582637640,0.01394868,4000.4,4000.3,25.07122859]
[1733582637841,0.01394868,4000.4,4000.3,15.25013983]
[1733582638750,2.94857983,4001.3,4001.2,0.17476]
[1733582639048,0.17475,4001.6,4001.5,0.17475]
[1733582639242,6.15637983,4001.7,4001.5,0.17475]
[1733582639243,6.15637983,4001.7,4001.5,4.82722569]
[1733582639449,3.38254,4001.7,4001.6,0.17474]
[1733582639753,3.38254,4001.7,4001.6,0.20897334]
[1733582639954,0.17474,4001.7,4001.6,4.13566428]
[1733582640456,0.17474,4001.7,4001.6,3.96092428]
[1733582640644,0.17474,4001.7,4001.6,0.03423334]
[1733582641262,0.17474,4001.7,4001.6,3.96092428]
[1733582641465,0.58714,4001.7,4001.6,0.03423334]
[1733582642760,0.58714,4001.7,4001.6,0.20897334]
[1733582643062,0.58714,4001.7,4001.6,0.03423334]
[1733582645955,0.17473,4001.9,4001.7,0.17473]
[1733582646168,0.57054,4001.8,4001.6,1.10916969]
[1733582646666,0.57054,4001.8,4001.7,0.03423334]
[1733582646866,0.3958,4001.8,4001.7,0.03423334]
[1733582647067,0.3958,4001.8,4001.7,0.20897334]
[1733582647269,0.57053,4001.8,4001.7,0.03423334]
[1733582647464,0.3958,4001.8,4001.7,0.03423334]
[1733582647673,0.57053,4001.8,4001.7,0.03423334]
[1733582649264,3.12329983,4002.2,4001.7,1.10916969]
[1733582649562,3.2078,4002.3,4001.9,0.17473]
[1733582649563,0.3891,4002.1,4001.9,0.17473]
[1733582649767,0.56382,4002.1,4002.0,0.03423334]
[1733582652262,0.56382,4002.1,4002.0,0.20895334]
[1733582652461,0.56382,4002.1,4002.0,0.03423334]
[1733582655369,0.3891,4002.1,4002.0,0.03423334]
[1733582655676,0.56382,4002.1,4002.0,0.03423334]
[1733582656160,0.56382,4002.1,4002.0,0.20895334]
[1733582656364,2.94857983,4002.6,4002.0,0.93442969]
[1733582656565,7.13714984,4002.8,4002.5,0.1747]
[1733582656566,0.17469,4002.7,4002.5,0.1747]
[1733582656767,0.58399,4002.7,4002.6,0.03423334]
[1733582657167,0.4093,4002.7,4002.6,0.03423334]
[1733582657379,0.58399,4002.7,4002.6,0.03423334]
[1733582657671,0.4093,4002.7,4002.6,0.03423334]
[1733582657869,0.58399,4002.7,4002.6,0.03423334]
[1733582658107,0.4093,4002.7,4002.6,0.20893334]
[1733582658666,3.2078,4002.8,4002.7,0.17469]
[1733582658966,3.2078,4002.8,4002.7,1.10911969]
[1733582659571,0.55538,4003.2,4002.7,1.10911969]
[1733582659572,0.3807,4003.2,4002.7,0.93442969]
[1733582659768,0.55537,4003.2,4003.1,0.17468]
[1733582659966,0.3807,4003.2,4003.1,0.03423334]
[1733582661571,0.3807,4003.2,4003.1,0.20891334]
[1733582661768,0.3807,4003.2,4003.1,0.58911334]
[1733582663174,0.669,4003.6,4003.4,0.17466]
[1733582663482,0.17465,4003.7,4003.5,0.17466]
[1733582663678,3.9867,4003.8,4003.3,0.90019635]
[1733582663871,3.3177,4003.8,4003.6,0.17465]
[1733582664180,3.3177,4003.8,4003.7,0.17465]
[1733582664474,3.3177,4003.8,4003.5,0.03423334]
[1733582664881,0.17465,4003.6,4003.5,0.03423334]
[1733582666282,0.17465,4003.7,4003.5,0.03423334]
[1733582666480,0.17465,4003.7,4003.5,0.20889334]
[1733582666778,0.17465,4003.7,4003.5,0.03423334]
[1733582667076,0.17465,4003.7,4003.6,0.03423334]
[1733582667482,3.3177,4003.8,4003.6,0.03423334]
[1733582667683,3.3177,4003.8,4003.6,0.93442969]
[1733582667879,3.49235,4003.8,4003.6,1.10907969]
[1733582668185,3.49235,4003.8,4003.7,0.03423334]
[1733582668376,3.3177,4003.8,4003.7,0.20888334]
[1733582668583,3.3177,4003.8,4003.7,0.99528334]
[1733582668777,0.1099,4003.8,4003.7,0.99528334]
[1733582678985,0.3818,4004.5,4004.4,0.17462]
[1733582679282,0.3818,4004.5,4004.3,0.17462]
[1733582679474,0.17462,4004.4,4004.3,0.17462]
[1733582679680,0.3818,4004.5,4004.4,0.17462]
[1733582680177,0.3818,4004.5,4004.4,0.20885334]
[1733582686586,0.3878,4004.8,4004.7,0.17461]
[1733582686787,0.3878,4004.8,4004.7,1.07480635]
[1733582687189,0.3878,4004.8,4004.7,1.10903969]
[1733582688881,0.4096,4005.0,4004.9,0.1746]
[1733582689077,0.4096,4005.0,4004.9,0.20883334]
[1733582689889,0.4096,4005.0,4004.9,0.03423334]
[1733582690090,0.58419,4005.0,4004.9,0.03423334]
[1733582690692,0.58419,4005.0,4004.9,0.20883334]
[1733582690992,0.4096,4005.0,4004.9,0.20883334]
[1733582691489,0.58419,4005.0,4004.9,0.20883334]
[1733582691689,0.58419,4005.0,4004.9,0.03423334]
[1733582693191,0.58419,4005.0,4004.9,0.20883334]
[1733582693192,0.4096,4005.0,4004.9,0.20883334]
[1733582695095,0.4096,4005.0,4004.9,0.03423334]
[1733582695096,0.58419,4005.0,4004.9,0.03423334]
[1733582701298,0.4096,4005.0,4004.9,0.20883334]
[1733582701795,0.58419,4005.0,4004.9,0.03423334]
[1733582704110,0.43653,4004.7,4003.7,0.41]
[1733582704295,0.17462,4004.3,4003.7,0.58465]
[1733582704500,0.17464,4004.0,4003.8,0.17464]
[1733582704699,0.3905,4003.9,4003.8,0.17464]
[1733582705192,7.05657618,4004.5,4003.8,0.17464]
[1733582705395,7.05657618,4004.5,4003.9,0.17464]
[1733582705700,0.17463,4004.1,4003.8,0.17464]
[1733582705895,0.17462,4004.4,4003.8,0.17464]
[1733582706097,0.90019635,4004.2,4003.5,3.2078]
[1733582706301,0.17466,4003.5,4003.4,0.90019635]
[1733582706904,1.0787,4003.8,4003.4,0.90019635]
[1733582707103,1.0787,4003.8,4003.7,0.90019635]
[1733582707299,2.94857983,4004.2,4003.7,0.90019635]
[1733582707501,0.3748,4004.3,4004.1,0.90019635]
[1733582707798,0.3748,4004.3,4004.2,0.17463]
[1733582708199,3.12315983,4005.3,4004.3,0.43657]
[1733582708397,3.2078,4005.4,4005.2,0.90019635]
[1733582708596,3.38238,4005.4,4005.2,0.90019635]
[1733582709097,3.2078,4005.4,4005.2,1.07477635]
[1733582709400,3.38238,4005.4,4005.2,0.90019635]
[1733582709701,3.2078,4005.4,4005.2,0.90019635]
[1733582710002,3.2078,4005.4,4005.2,1.07477635]
[1733582710198,3.2078,4005.4,4005.3,0.17458]
[1733582711304,2.94857983,4005.8,4005.6,0.17457]
[1733582711503,6.29854983,4005.9,4005.3,0.3925]
[1733582711699,3.34997,4005.9,4005.8,0.17456]
[1733582711905,3.34997,4005.9,4005.3,1.2087]
[1733582712100,3.34997,4005.9,4005.8,0.17456]
[1733582712315,3.34997,4005.9,4005.3,1.2087]
[1733582712508,3.34997,4005.9,4005.8,0.17456]
[1733582712803,3.34997,4005.9,4005.2,0.17458]
[1733582712804,0.17457,4005.5,4005.2,0.17458]
[1733582713107,0.3928,4005.8,4005.7,0.17456]
[1733582713803,0.3928,4005.8,4005.2,1.94453179]
[1733582714006,0.3928,4005.8,4005.7,0.17456]
[1733582714199,0.3928,4005.8,4005.2,1.94453179]
[1733582714501,0.3928,4005.8,4005.6,0.17456]
[1733582714911,0.3928,4005.8,4005.2,1.94453179]
[1733582715208,0.3928,4005.8,4005.7,0.17456]
[1733582716101,0.14217,4005.9,4005.2,5.87122273]
[1733582716408,0.14217,4005.9,4005.4,0.17457]
[1733582716609,0.14217,4005.9,4005.5,0.17457]
[1733582716813,0.14217,4005.9,4005.2,5.87122273]
[1733582717004,0.14217,4005.9,4005.4,0.17457]
[1733582717306,0.14217,4005.9,4005.6,1.94453179]
[1733582717506,0.31673,4005.9,4005.7,0.8087]
[1733582718204,0.14217,4005.9,4005.7,0.8087]
[1733582718706,0.14217,4005.9,4005.8,0.3866]
[1733582720306,0.14217,4005.9,4005.8,0.56116]
[1733582720710,3.2078,4006.4,4005.8,0.3866]
[1733582720909,3.92934984,4007.0,4006.1,2.11907179]
[1733582720910,0.17453,4006.6,4006.1,2.11907179]
[1733582721107,0.17453,4006.6,4006.2,0.17454]
[1733582721415,0.17453,4006.6,4006.3,0.4023]
[1733582721616,3.2078,4007.0,4006.3,0.4023]
[1733582721815,3.2078,4007.0,4006.5,1.94453179]
[1733582722109,0.17451,4007.0,4006.6,0.17452]
[1733582722509,3.6199,4007.3,4006.5,1.94453179]
[1733582722707,0.17452,4006.6,4006.5,1.94453179]
[1733582722908,0.17452,4006.7,4006.5,1.94453179]
[1733582723108,3.6199,4007.3,4006.5,1.94453179]
[1733582723316,0.17452,4006.8,4006.5,1.94453179]
[1733582723814,3.6199,4007.3,4006.5,1.94453179]
[1733582724018,0.17452,4006.8,4006.6,0.3733]
[1733582724238,3.2078,4007.3,4006.6,0.3733]
[1733582724239,0.17452,4006.7,4006.6,0.3733]
[1733582726111,3.2078,4007.3,4006.6,0.3733]
[1733582726311,0.17452,4006.8,4006.6,0.3733]
[1733582726516,3.2078,4007.3,4006.6,0.3733]
[1733582726712,0.17451,4007.0,4006.7,0.17452]
[1733582727016,0.1745,4007.1,4006.7,0.17452]
[1733582727317,3.79226983,4007.8,4006.6,0.3733]
[1733582727318,0.17448,4007.6,4007.0,3.2078]
[1733582727519,0.7741,4008.2,4007.1,0.3768]
[1733582727711,0.7741,4008.2,4007.2,0.1745]
[1733582727908,0.17448,4007.6,4007.2,0.1745]
[1733582728319,3.2078,4007.8,4007.3,0.3931]
[1733582728615,0.17448,4007.6,4007.3,0.3931]
[1733582728811,3.2078,4007.8,4007.3,0.3931]
[1733582729011,0.17447,4007.8,4007.4,0.17449]
[1733582729211,0.7741,4008.2,4007.3,2.33763179]
[1733582729416,0.17447,4007.9,4007.3,2.33763179]
[1733582729717,0.7741,4008.2,4007.3,2.33763179]
[1733582729918,0.17447,4007.8,4007.5,0.17448]
[1733582730114,0.7741,4008.2,4007.4,0.17449]
[1733582730416,0.17447,4007.8,4007.3,2.33763179]
[1733582730719,0.17447,4007.8,4007.5,0.17448]
[1733582730915,0.7741,4008.2,4007.3,2.33763179]
[1733582731116,0.7741,4008.2,4007.6,0.17448]
[1733582731410,0.7741,4008.2,4007.3,2.33763179]
[1733582731616,0.17446,4008.1,4007.6,0.17448]
[1733582731915,0.7741,4008.2,4007.3,2.33763179]
[1733582732124,0.17449,4007.4,4007.3,2.33763179]
[1733582732412,0.43615,4008.1,4007.3,2.51212179]
[1733582732413,0.17449,4007.5,4007.3,2.51212179]
[1733582732814,0.17449,4007.4,4007.3,2.33763179]
[1733582733122,0.7741,4008.2,4007.3,2.33763179]
[1733582733123,1.21025,4008.2,4007.3,2.33763179]
[1733582733312,0.7741,4008.2,4007.3,2.33763179]
[1733582733514,0.17448,4007.7,4007.4,0.17448]
[1733582733719,0.17448,4007.6,4007.3,2.51212179]
[1733582734017,0.17448,4007.7,4007.4,0.17449]
[1733582734255,0.17447,4007.8,4007.6,0.17448]
[1733582734414,0.3773,4008.2,4007.3,2.33763179]
[1733582734618,0.3773,4008.2,4007.7,0.17447]
[1733582734917,0.17447,4008.0,4007.8,0.3859]
[1733582735113,0.17447,4008.0,4007.8,0.7687]
[1733582735522,0.17446,4008.1,4007.9,0.17447]
[1733582735712,0.17447,4007.9,4007.8,0.7687]
[1733582735916,3.2078,4008.4,4007.9,0.17447]
[1733582735917,0.17446,4008.2,4007.9,0.17447]
[1733582736115,0.17446,4008.1,4007.8,0.94317]
[1733582736317,3.2078,4008.4,4007.8,0.7687]
[1733582736514,0.17446,4008.1,4007.9,0.17447]
[1733582736725,3.2078,4008.4,4008.0,0.3878]
[1733582736927,0.17446,4008.2,4008.0,0.3878]
[1733582737218,0.17446,4008.2,4007.5,3.2078]
[1733582737219,3.2078,4008.4,4007.5,3.2078]
[1733582737414,0.17448,4007.6,4007.5,3.2078]
[1733582737812,0.43613,4008.3,4007.5,3.2078]
[1733582738019,0.17448,4007.7,4007.5,3.2078]
[1733582738325,0.43613,4008.3,4007.5,3.2078]
[1733582738629,0.17448,4007.7,4007.5,3.38228]
[1733582738825,0.17448,4007.7,4007.5,3.2078]
[1733582739017,0.17448,4007.7,4007.6,0.4006]
[1733582739519,0.17448,4007.7,4007.5,3.2078]
[1733582739520,0.17448,4007.6,4007.5,3.2078]
[1733582739719,0.56318,4007.6,4007.5,3.2078]
[1733582740818,0.17449,4007.5,4007.3,2.91822179]
[1733582741421,3.2078,4007.9,4007.3,2.74373179]
[1733582741619,3.2078,4007.9,4007.8,1.94453179]
[1733582742025,3.2078,4007.9,4007.8,2.11900179]
[1733582742519,3.7711,4008.6,4007.8,1.94453179]
[1733582742721,0.17446,4008.2,4007.9,1.33226]
[1733582742917,3.7711,4008.6,4007.9,1.33226]
[1733582743217,0.17446,4008.2,4007.9,1.33226]
[1733582743419,0.17446,4008.2,4008.0,0.17446]
[1733582743615,0.17445,4008.3,4008.0,0.17446]
[1733582744131,3.7711,4008.6,4007.9,1.1578]
[1733582744642,3.7711,4008.6,4007.9,1.33227]
[1733582744643,0.17446,4008.1,4007.9,1.33227]
[1733582744820,3.7711,4008.6,4007.9,1.1578]
[1733582744821,0.17446,4008.0,4007.9,1.1578]
[1733582745126,0.17447,4008.0,4007.7,3.38227]
[1733582745328,0.43612,4008.4,4007.4,1.94453179]
[1733582745528,3.2078,4008.1,4007.4,1.94453179]
[1733582745729,3.2078,4008.1,4007.4,2.11902179]
[1733582745730,0.17448,4007.6,4007.4,2.11902179]
[1733582746036,0.7621,4008.0,4007.4,1.94453179]
[1733582746527,0.17448,4007.7,4007.5,0.17448]
[1733582746723,0.7621,4008.0,4007.4,1.94453179]
[1733582747127,0.17448,4007.6,4007.4,2.11902179]
[1733582747520,0.7621,4008.0,4007.4,2.11902179]
[1733582747521,0.17448,4007.7,4007.4,2.11902179]
[1733582747721,0.7621,4008.0,4007.4,1.94453179]
[1733582747929,0.17448,4007.7,4007.5,0.17448]
[1733582748132,0.17447,4007.9,4007.6,0.17448]
[1733582748333,0.7621,4008.0,4007.7,0.17447]
[1733582748528,3.2078,4008.1,4007.8,1.94453179]
[1733582748731,0.17446,4008.1,4007.9,0.7982]
[1733582748926,0.4113,4008.3,4007.9,1.173]
[1733582749128,0.4113,4008.3,4008.2,1.94453179]
[1733582749539,0.4101,4008.4,4008.2,1.94453179]
[1733582749733,0.4101,4008.4,4008.2,2.11898179]
[1733582750031,0.58455,4008.4,4008.2,1.94453179]
[1733582750237,3.5923,4008.7,4008.2,1.94453179]
[1733582750433,0.17445,4008.4,4008.2,1.94453179]
[1733582750640,3.5923,4008.7,4008.2,1.94453179]
[1733582750938,3.5923,4008.7,4008.2,2.11898179]
[1733582751244,0.17445,4008.4,4008.2,2.11898179]
[1733582751935,0.17445,4008.4,4008.2,1.94453179]
[1733582752130,0.17444,4008.6,4008.2,1.94453179]
[1733582752335,0.17444,4008.5,4008.3,0.17445]
[1733582752535,3.5923,4008.7,4008.2,2.11898179]
[1733582752536,0.17445,4008.4,4008.2,2.11898179]
[1733582752731,0.17444,4008.5,4008.2,2.11898179]
[1733582752930,3.5923,4008.7,4008.2,1.94453179]
[1733582753133,0.17445,4008.4,4008.2,1.94453179]
[1733582753536,0.17444,4008.5,4008.2,2.11898179]
[1733582753735,0.17445,4008.4,4008.1,0.17446]
[1733582753934,3.5923,4008.7,4007.9,1.173]
[1733582753935,0.3832,4008.3,4007.9,0.7982]
[1733582754137,0.3832,4008.3,4007.8,1.94453179]
[1733582754445,0.17446,4008.1,4007.9,0.17446]
[1733582754834,0.17446,4008.1,4007.9,0.17447]
[1733582755044,0.379,4008.2,4007.8,1.94453179]
[1733582755436,0.379,4008.2,4007.8,2.11900179]
[1733582755639,0.17447,4008.0,4007.8,2.11900179]
[1733582755934,0.379,4008.2,4007.8,1.94453179]
[1733582756330,0.17446,4008.1,4007.9,0.17446]
[1733582756848,0.17445,4008.4,4007.8,1.94453179]
[1733582757144,3.9974,4008.7,4007.8,1.94453179]
[1733582757441,0.17445,4008.4,4008.2,0.17445]
[1733582758036,3.9974,4008.7,4007.8,1.94453179]
[1733582758237,0.17444,4008.5,4007.9,0.17446]
[1733582758443,0.17446,4008.2,4008.0,0.17446]
[1733582758634,0.17446,4008.2,4007.9,0.17446]
[1733582759039,0.17446,4008.0,4007.9,0.17446]
[1733582759241,0.17446,4008.1,4007.9,0.17446]
[1733582759441,0.17446,4008.1,4007.9,0.17447]
[1733582759742,0.17446,4008.0,4007.8,2.11900179]
[1733582760143,0.4133,4008.4,4007.8,1.94453179]
[1733582760346,0.17446,4008.1,4007.9,0.17447]
[1733582760547,0.4133,4008.4,4007.8,1.94453179]
[1733582760754,0.17446,4008.0,4007.8,1.94453179]
[1733582760947,0.58775,4008.4,4007.9,0.17447]
[1733582761139,0.4133,4008.4,4007.8,1.94453179]
[1733582761439,0.58775,4008.4,4007.9,0.17447]
[1733582761639,0.4133,4008.4,4007.8,1.94453179]
[1733582761839,3.9974,4008.7,4007.8,1.94453179]
[1733582762044,0.17445,4008.4,4008.2,0.17445]
[1733582762246,0.17444,4008.5,4008.2,0.17445]
[1733582762743,0.17444,4008.6,4008.2,0.17445]
[1733582762945,0.17444,4008.5,4008.3,0.58845]
[1733582763145,0.17444,4008.5,4008.4,0.4013]
[1733582763844,4.3844,4008.7,4008.4,0.57574]
[1733582764045,0.17444,4008.6,4008.4,0.4013]
[1733582764244,0.17444,4008.5,4008.4,0.4013]
[1733582764642,4.3844,4008.7,4008.4,0.4013]
[1733582764862,0.17444,4008.6,4008.4,0.4013]
[1733582765058,0.17444,4008.6,4008.4,0.57574]
[1733582765264,0.17444,4008.6,4008.4,0.7867]
[1733582765452,0.17444,4008.5,4008.4,0.7867]
[1733582765856,4.15373,4008.7,4008.4,0.96114]
[1733582766157,0.17444,4008.6,4008.4,0.96114]
[1733582766353,0.17444,4008.5,4008.4,0.7867]
[1733582766781,3.9793,4008.7,4008.4,0.7867]
[1733582767060,0.7715,4008.7,4008.4,0.7867]
[1733582767266,3.80699983,4009.0,4008.6,1.94453179]
[1733582767459,0.85842,4009.0,4008.6,1.94453179]
[1733582767662,0.17443,4008.9,4008.6,1.94453179]
[1733582767963,0.684,4009.0,4008.8,0.17443]
[1733582768263,0.17442,4009.0,4008.7,0.17443]
[1733582769059,0.17442,4009.0,4008.8,0.17443]
[1733582769261,0.399,4009.1,4008.6,1.94453179]
[1733582769463,0.17443,4008.7,4008.6,1.94453179]
[1733582770177,3.34757983,4009.1,4008.4,0.7867]
[1733582770360,0.17442,4009.0,4008.4,0.7867]
[1733582770555,0.17444,4008.5,4008.4,0.4013]
[1733582771356,2.94857983,4009.0,4008.4,0.4013]
[1733582771561,3.34757983,4009.1,4008.6,1.94453179]
[1733582771758,3.2078,4009.2,4009.1,0.17441]
[1733582771966,3.2078,4009.2,4009.1,0.58901]
[1733582772262,3.2078,4009.2,4009.1,1.37831]
[1733582773455,0.17438,4009.9,4009.5,0.1744]
[1733582773861,0.3825,4010.0,4009.6,0.17439]
[1733582774159,0.7657,4010.1,4009.1,5.13059094]
[1733582774360,0.17438,4009.9,4009.5,0.17439]
[1733582774665,0.17438,4010.0,4009.5,2.11893179]
[1733582775467,0.17438,4010.0,4009.6,0.17439]
[1733582775762,0.7657,4010.1,4009.5,1.94453179]
[1733582776161,0.94007,4010.1,4009.7,0.17439]
[1733582776464,0.94007,4010.1,4009.8,0.3774]
[1733582776676,0.94007,4010.1,4009.8,0.787]
[1733582776966,0.94007,4010.1,4009.8,1.1614]
[1733582777269,3.2078,4010.2,4009.9,1.94453179]
[1733582777458,3.2078,4010.2,4010.0,0.17438]
[1733582777658,0.06953,4010.6,4010.3,0.17436]
[1733582777872,0.06953,4010.6,4010.4,1.94453179]
[1733582778168,0.06953,4010.6,4010.5,0.94135]
[1733582778362,0.06953,4010.6,4010.5,1.32845]
[1733582780065,0.06953,4010.6,4010.5,1.1541]
[1733582781166,0.06953,4010.6,4010.4,1.94453179]
[1733582781364,0.17435,4010.5,4010.4,1.94453179]
[1733582781762,0.06953,4010.6,4010.4,1.94453179]
[1733582782264,0.06953,4010.6,4010.5,0.3997]
[1733582782461,0.06953,4010.6,4010.5,1.185]
[1733582782859,0.06953,4010.6,4010.5,1.35935]
[1733582783065,0.06953,4010.6,4010.5,1.185]
[1733582784259,3.2078,4010.9,4010.5,1.35935]
[1733582784461,0.4014,4011.4,4010.8,1.94453179]
[1733582784869,0.4014,4011.4,4010.3,3.2078]